bitfinex-derivatives/quotes_ETHF0:USTF0_20241105
["timestamp","ask_amount","ask_price","bid_price","bid_amount"]
[1730831156259,40.8,2450.7,2450.6,0.40808]
[1730831156562,40.8,2450.7,2450.5,0.40808]
[1730831157363,7.26305837,2450.8,2450.3,0.4435]
[1730831157364,6.85500837,2450.8,2450.6,0.40807]
[1730831157563,3.2078,2450.8,2450.7,0.40806]
[1730831157767,44.0078,2450.8,2450.7,0.40806]
[1730831158268,3.2078,2450.8,2450.7,0.40806]
[1730831158765,3.2078,2450.8,2450.6,0.40807]
[1730831159469,4.78232125,2450.8,2450.6,0.40807]
[1730831159964,4.78232125,2450.8,2450.3,0.4435]
[1730831160161,3.2078,2450.8,2450.7,0.40806]
[1730831160764,6.58499814,2451.0,2450.4,4.20227837]
[1730831160765,1.57452125,2451.0,2450.4,4.20227837]
[1730831161064,3.2078,2451.1,2451.0,0.40801]
[1730831161669,0.4492,2451.4,2450.8,0.8997]
[1730831161865,2.02372125,2451.4,2451.1,0.40799]
[1730831162169,2.02372125,2451.4,2451.2,0.40798]
[1730831162463,0.4492,2451.4,2451.3,0.40796]
[1730831162663,0.4492,2451.4,2451.2,0.40797]
[1730831162866,0.4492,2451.4,2451.3,0.40796]
[1730831163068,0.4492,2451.4,2450.8,1.91979]
[1730831163275,0.4492,2451.4,2451.2,0.40797]
[1730831164269,0.4492,2451.4,2451.1,0.40799]
[1730831164468,2.43167125,2451.4,2451.1,0.40799]
[1730831164859,2.02372125,2451.4,2450.8,0.8997]
[1730831165066,0.4492,2451.4,2451.2,0.40797]
[1730831165567,2.02372125,2451.4,2451.2,0.40797]
[1730831165968,0.4492,2451.4,2451.2,0.40797]
[1730831166272,0.4492,2451.4,2451.3,0.40796]
[1730831166474,0.4492,2451.4,2451.2,0.40796]
[1730831166670,0.4492,2451.4,2451.3,0.40796]
[1730831168164,40.8,2451.5,2451.4,0.40795]
[1730831168376,3.6584,2451.6,2451.4,0.40795]
[1730831168377,4.1159,2451.6,2451.4,0.40795]
[1730831168566,4.1159,2451.6,2451.0,1.095]
[1730831168763,7.29790837,2451.6,2451.0,1.095]
[1730831168963,0.40794,2451.5,2451.3,0.40796]
[1730831169168,48.09790837,2451.6,2451.4,0.40793]
[1730831169873,48.50582837,2451.6,2451.4,0.40793]
[1730831170473,48.09790837,2451.6,2451.0,2.11502]
[1730831170678,48.09790837,2451.6,2451.5,0.40793]
[1730831171075,52.17710837,2451.6,2451.5,0.40793]
[1730831172164,44.0078,2451.6,2451.5,0.40793]
[1730831172578,3.2078,2451.6,2451.5,0.40793]
[1730831173573,3.37969125,2451.9,2451.3,0.9]
[1730831173574,2.97182125,2451.9,2451.7,0.4079]
[1730831173770,2.97182125,2451.9,2451.3,1.91988]
[1730831173771,1.3973,2451.9,2451.3,1.91988]
[1730831173965,3.2078,2452.0,2451.9,0.40786]
[1730831174166,44.0078,2452.0,2451.9,0.40786]
[1730831175276,3.61565,2452.0,2451.8,0.4474]
[1730831175469,0.4079,2451.7,2451.4,1.50194]
[1730831175672,0.86312,2451.6,2451.3,0.445]
[1730831175875,6.79775837,2451.4,2451.1,0.40798]
[1730831176778,6.38980837,2451.4,2451.2,0.40797]
[1730831177171,6.38980837,2451.4,2451.3,0.40796]
[1730831177582,10.46900837,2451.4,2451.3,0.40796]
[1730831177880,10.46900837,2451.4,2451.0,0.8924]
[1730831178180,6.38980837,2451.4,2451.3,0.40796]
[1730831178879,10.46900837,2451.4,2451.3,0.40796]
[1730831179772,10.46900837,2451.4,2451.2,0.40797]
[1730831179773,7.287,2451.4,2451.2,0.40797]
[1730831180079,0.40797,2451.3,2451.1,0.40798]
[1730831180276,3.2078,2451.4,2451.0,0.8924]
[1730831180479,3.61575,2451.4,2451.2,0.40798]
[1730831180776,3.2078,2451.4,2451.0,0.8924]
[1730831180983,3.2078,2451.4,2451.3,0.40796]
[1730831181481,7.287,2451.4,2451.3,0.40796]
[1730831182380,3.2078,2451.4,2451.3,0.40796]
[1730831184071,0.4607,2451.8,2451.6,0.40791]
[1730831184269,3.2078,2451.7,2451.6,0.40791]
[1730831184875,3.2078,2451.7,2451.5,0.40791]
[1730831185277,3.2078,2451.7,2451.6,0.40791]
[1730831185677,3.2078,2451.7,2451.4,0.4448]
[1730831185678,7.287,2451.7,2451.4,0.4448]
[1730831185876,0.40792,2451.6,2451.4,0.85274]
[1730831188075,0.40793,2451.5,2451.1,0.095]
[1730831188382,0.40793,2451.5,2451.1,0.40799]
[1730831188383,0.40797,2451.3,2451.1,0.40799]
[1730831188589,0.4704,2451.2,2451.1,0.40799]
[1730831193187,3.6509,2451.4,2451.0,0.4474]
[1730831193388,3.2078,2451.4,2451.3,0.40796]
[1730831194493,3.2078,2451.8,2451.7,0.40789]
[1730831194685,3.2078,2451.8,2451.6,0.4079]
[1730831194886,3.2078,2451.8,2451.4,0.4482]
[1730831195087,3.2078,2451.8,2451.7,0.4079]
[1730831195487,7.2862,2451.8,2451.6,0.4079]
[1730831195690,3.2078,2451.8,2451.7,0.4079]
[1730831199399,4.78232125,2451.9,2451.7,0.4079]
[1730831200187,1.57452125,2451.8,2451.7,0.4079]
[1730831200700,3.2078,2451.9,2451.7,0.4079]
[1730831200701,4.78232125,2451.9,2451.7,0.4079]
[1730831201190,1.57452125,2451.8,2451.7,0.4079]
[1730831202594,1.57452125,2451.8,2451.6,0.4671]
[1730831202794,1.57452125,2451.8,2451.6,0.875]
[1730831202990,0.40791,2451.7,2451.5,0.4501]
[1730831203299,1.98243125,2451.7,2451.5,0.85803]
[1730831203503,1.57452125,2451.7,2451.6,0.40791]
[1730831203796,1.57452125,2451.7,2451.5,0.4501]
[1730831204000,1.57452125,2451.7,2451.5,0.85801]
[1730831204189,1.57452125,2451.6,2451.5,0.85801]
[1730831204595,1.98243125,2451.6,2451.5,0.4501]
[1730831205093,1.57452125,2451.6,2451.5,0.4501]
[1730831205286,2.52707977,2451.7,2451.5,0.4501]
[1730831205287,2.11916977,2451.7,2451.5,0.4501]
[1730831205489,2.11916977,2451.7,2451.6,0.40791]
[1730831205992,2.52707977,2451.7,2451.5,0.85802]
[1730831206198,2.11916977,2451.7,2451.5,0.85802]
[1730831206496,2.52707977,2451.7,2451.5,0.85802]
[1730831207402,2.11916977,2451.6,2451.5,0.85802]
[1730831207596,0.40791,2451.7,2451.5,0.85802]
[1730831207597,2.52707977,2451.7,2451.5,0.85802]
[1730831207999,2.11916977,2451.6,2451.5,0.85802]
[1730831209600,6.26578056,2451.7,2451.5,0.85802]
[1730831210100,2.11925383,2451.6,2451.5,0.85802]
[1730831211292,6.26578056,2451.7,2451.5,0.85802]
[1730831212096,5.85787056,2451.7,2451.5,0.40792]
[1730831212500,3.2078,2451.7,2451.0,0.095]
[1730831212693,1.58940888,2451.2,2451.1,0.4454]
[1730831212893,1.58940888,2451.2,2451.1,0.8534]
[1730831214303,1.58940888,2451.2,2451.1,0.4454]
[1730831214498,2.11921185,2451.3,2451.1,0.4454]
[1730831214695,2.11921185,2451.3,2451.2,0.40798]
[1730831216404,5.73496185,2451.4,2451.2,0.40798]
[1730831218101,5.73496185,2451.4,2450.8,0.4731]
[1730831218102,4.0792,2451.3,2450.8,0.4731]
[1730831218297,4.79669381,2451.0,2450.8,0.932]
[1730831218501,4.79669381,2451.0,2450.9,0.40803]
[1730831218901,3.2078,2451.0,2450.9,0.40803]
[1730831219107,4.79658324,2451.0,2450.9,0.40803]
[1730831220504,1.58878324,2451.1,2451.0,0.40801]
[1730831220702,1.58878324,2451.2,2451.1,0.408]
[1730831220903,1.58878324,2451.2,2451.1,0.8515]
[1730831222708,1.58878324,2451.2,2451.1,4.9315]
[1730831222905,1.58878324,2451.3,2451.2,0.40798]
[1730831223105,1.58878324,2451.4,2451.3,0.40796]
[1730831223314,1.58878324,2451.4,2451.3,4.06166837]
[1730831223607,1.58878324,2451.5,2451.4,0.40795]
[1730831223797,1.58878324,2451.6,2451.3,4.74570837]
[1730831223996,2.11852508,2451.7,2451.6,0.40791]
[1730831223997,1.58878324,2451.7,2451.6,0.40791]
[1730831224201,2.6490782,2452.0,2451.6,0.40791]
[1730831224202,1.58878324,2451.8,2451.7,0.4079]
[1730831224506,2.11852508,2452.0,2451.8,0.40788]
[1730831224507,1.58878324,2451.9,2451.8,0.40788]
[1730831224699,1.58878324,2451.9,2451.8,0.87278]
[1730831227414,1.58878324,2452.0,2451.9,0.40786]
[1730831227610,2.11852508,2452.1,2451.8,4.5433]
[1730831227611,1.58878324,2452.1,2452.0,0.40785]
[1730831228113,4.79658324,2452.2,2452.0,4.0784]
[1730831228419,4.79658324,2452.2,2452.1,0.86233]
[1730831228908,5.32632508,2452.2,2451.9,1.092]
[1730831229108,5.32632508,2452.2,2452.0,0.87005]
[1730831229109,1.58822025,2452.1,2452.0,0.87005]
[1730831231207,3.2078,2452.2,2452.1,0.40783]
[1730831231515,4.7956009,2452.2,2452.0,0.87004]
[1730831231716,1.5878009,2452.1,2452.0,0.87004]
[1730831232014,3.2078,2452.2,2452.1,0.40783]
[1730831232211,4.79550918,2452.2,2452.1,0.40783]
[1730831232914,1.58770918,2452.2,2452.1,0.40783]
[1730831233419,4.79550918,2452.2,2452.1,0.40783]
[1730831235012,5.20331918,2452.2,2451.9,1.49985]
[1730831235214,0.9126,2452.1,2451.9,1.49985]
[1730831235423,0.9126,2452.1,2451.8,1.091]
[1730831235812,0.9126,2452.1,2452.0,0.40785]
[1730831236216,0.4447,2452.1,2452.0,0.40785]
[1730831236416,5.22560918,2452.2,2452.1,0.40783]
[1730831236711,0.4301,2452.2,2452.1,0.40783]
[1730831237415,2.01780918,2452.2,2452.0,0.40784]
[1730831238821,2.01780918,2452.2,2452.1,0.40783]
[1730831239318,2.01780918,2452.2,2451.8,1.091]
[1730831239618,2.01780918,2452.2,2452.0,0.40783]
[1730831240316,2.01780918,2452.2,2451.9,0.40786]
[1730831240317,5.63342918,2452.2,2451.9,0.40786]
[1730831240919,5.63342918,2452.2,2452.0,0.40784]
[1730831241223,5.22560918,2452.2,2452.1,0.40783]
[1730831241523,3.2078,2452.2,2452.1,0.40783]
[1730831242022,1.58770918,2452.3,2452.2,0.40781]
[1730831242217,1.58770918,2452.3,2452.1,0.40781]
[1730831242419,1.58770918,2452.3,2452.2,0.40781]
[1730831244519,0.40782,2452.2,2451.8,1.091]
[1730831244823,0.8697,2452.2,2452.1,0.40783]
[1730831249915,1.27751,2452.2,2452.0,0.40783]
[1730831250319,0.8697,2452.2,2452.1,0.40783]
[1730831252024,7.1337129,2452.2,2451.8,1.49887]
[1730831252226,1.46850372,2452.0,2451.6,3.2078]
[1730831252519,0.40793,2451.6,2451.4,0.4522]
[1730831252819,3.61573,2451.6,2451.4,0.4522]
[1730831253016,0.9343,2451.5,2451.4,0.4522]
[1730831254225,0.9343,2451.5,2451.1,1.46850372]
[1730831254422,0.87285,2451.4,2451.1,2.33478372]
[1730831254622,0.4649,2451.4,2451.1,1.92680372]
[1730831254823,0.5914196,2451.3,2451.0,1.9736]
[1730831255028,0.5914196,2451.3,2451.1,1.46850372]
[1730831255326,0.5914196,2451.3,2451.2,0.40797]
[1730831255926,1.69137762,2451.3,2450.8,9.6251594]
[1730831256123,1.69137762,2451.3,2450.6,11.35907399]
[1730831256320,1.69137762,2451.3,2451.2,0.40797]
[1730831256624,4.89916108,2451.3,2451.2,0.40797]
[1730831256825,4.89916108,2451.3,2450.9,1.091]
[1730831257025,1.09994148,2451.2,2450.9,1.091]
[1730831257329,0.5914196,2451.1,2451.0,0.40801]
[1730831257530,0.5914196,2451.1,2451.0,4.48801]
[1730831257931,0.5914196,2451.1,2451.0,4.08]
[1730831258119,0.5914196,2451.1,2451.0,0.4461]
[1730831258321,0.5914196,2451.1,2451.0,0.85411]
[1730831259821,0.5914196,2451.1,2450.9,1.091]
[1730831260029,3.2078,2451.3,2450.9,1.49903]
[1730831260030,0.5914196,2451.0,2450.9,1.49903]
[1730831260326,0.5914196,2451.0,2450.9,5.66212479]
[1730831260528,3.2078,2451.3,2451.2,0.40798]
[1730831260720,7.04089983,2451.3,2451.2,4.25249878]
[1730831261226,7.04089983,2451.3,2451.2,3.61801042]
[1730831261420,7.04089983,2451.3,2451.2,3.61675387]
[1730831261621,7.04089983,2451.3,2451.2,4.25125354]
[1730831263121,7.04089983,2451.3,2451.2,3.61675387]
[1730831263728,7.04089983,2451.3,2451.2,4.25125354]
[1730831265531,7.04089983,2451.3,2451.2,4.25142638]
[1730831266530,7.04089983,2451.3,2451.2,3.84344638]
[1730831266720,7.44885983,2451.3,2451.2,3.84344638]
[1730831266919,9.03503899,2451.3,2451.2,2.22109461]
[1730831267122,9.56738491,2451.3,2451.2,1.6578926]
[1730831267318,9.56738491,2451.3,2451.2,0.9457926]
[1730831267523,50.89793803,2451.3,2451.2,0.637651]
[1730831268131,47.84089983,2451.3,2451.2,0.637651]
[1730831268332,49.95627909,2451.3,2451.2,1.045631]
[1730831268627,8.62752016,2451.3,2451.2,1.045631]
[1730831268933,8.62752016,2451.3,2451.2,1.04569757]
[1730831269225,7.04089983,2451.3,2451.2,1.04569757]
[1730831271028,7.04089983,2451.3,2451.2,0.63771757]
[1730831271436,7.04089983,2451.3,2451.2,1.04569757]
[1730831271624,7.04089983,2451.3,2451.2,0.63771757]
[1730831271829,7.04089983,2451.3,2451.2,1.04569757]
[1730831272335,7.04089983,2451.3,2451.2,1.04565514]
[1730831275439,7.04089983,2451.3,2451.2,1.5557902]
[1730831275939,7.04089983,2451.3,2451.2,0.40798]
[1730831276130,7.04089983,2451.3,2451.2,1.04564908]
[1730831276326,7.04089983,2451.3,2451.2,1.5557861]
[1730831277034,3.83309983,2451.3,2451.2,2.06592277]
[1730831277341,7.04089983,2451.3,2451.2,2.06592277]
[1730831278240,3.83309983,2451.3,2451.2,2.06592277]
[1730831278535,7.04089983,2451.3,2451.2,2.06592293]
[1730831279626,7.04089983,2451.3,2451.2,2.89726918]
[1730831279826,7.04089983,2451.3,2451.2,4.0450338]
[1730831279827,3.2078,2451.3,2451.2,4.0450338]
[1730831280129,3.2078,2451.3,2451.2,5.64187608]
[1730831281938,3.2078,2451.3,2451.2,5.44811582]
[1730831282438,7.04089983,2451.3,2451.2,6.69719435]
[1730831282633,7.04089983,2451.3,2451.2,5.88101346]
[1730831282834,7.04089983,2451.3,2451.2,4.60577551]
[1730831283031,7.04089983,2451.3,2451.2,4.09564025]
[1730831283230,7.04089983,2451.3,2451.2,5.37090682]
[1730831284036,3.2078,2451.3,2451.2,5.37090682]
[1730831285729,3.2078,2451.3,2451.2,4.55474664]
[1730831286035,3.2078,2451.3,2451.2,5.37091042]
[1730831286239,3.2078,2451.3,2451.2,5.37141389]
[1730831286534,3.2078,2451.3,2451.2,5.88151315]
[1730831286839,3.2078,2451.3,2451.2,5.37141437]
[1730831287542,4.79442033,2451.6,2451.2,5.37141437]
[1730831287735,0.095,2452.2,2452.1,0.40783]
[1730831287943,0.204,2452.5,2452.1,13.64439369]
[1730831288135,4.03709983,2452.5,2452.4,0.40778]
[1730831288438,0.204,2452.5,2452.4,3.2798074]
[1730831288631,2.6490782,2453.6,2452.4,7.31273505]
[1730831288632,0.4275,2453.1,2452.4,7.31273505]
[1730831288942,3.2078,2453.3,2453.0,0.40768]
[1730831289139,3.83309983,2453.1,2453.0,1.87669709]
[1730831289433,3.83309983,2453.1,2453.0,1.45728388]
[1730831289634,3.83309983,2453.1,2453.0,1.72705096]
[1730831289832,3.83309983,2453.1,2453.0,2.23677294]
[1730831290230,3.2078,2453.3,2453.0,1.3965512]
[1730831290434,3.83309983,2453.3,2453.1,4.57697932]
[1730831290633,3.83309983,2453.3,2453.2,1.29446922]
[1730831291038,3.83309983,2453.3,2453.2,1.80411964]
[1730831291242,3.83309983,2453.3,2453.2,0.27029949]
[1730831291632,3.83309983,2453.3,2453.1,0.40766]
[1730831292135,0.9295,2453.5,2452.9,3.18047872]
[1730831292336,3.83309983,2453.4,2453.3,0.40762]
[1730831292729,3.2078,2453.9,2453.5,0.4076]
[1730831292931,3.83309983,2453.6,2453.5,0.4076]
[1730831293143,3.83309983,2453.6,2453.5,1.29097788]
[1730831293343,3.2078,2453.9,2453.5,0.4076]
[1730831293637,3.83309983,2453.7,2453.6,0.40758]
[1730831294143,3.2078,2454.2,2453.8,0.40755]
[1730831294343,3.83309983,2453.9,2453.8,0.40755]
[1730831294941,3.2078,2454.2,2453.8,0.40755]
[1730831295146,3.83309983,2454.0,2453.8,3.18047872]
[1730831295641,3.2078,2454.2,2454.0,0.4075]
[1730831295950,3.83309983,2454.1,2454.0,0.4075]
[1730831296737,3.83309983,2454.1,2453.8,3.18047872]
[1730831296938,3.83309983,2454.1,2453.9,0.40752]
[1730831297338,3.83309983,2454.1,2453.8,3.18047872]
[1730831297537,3.83309983,2454.1,2454.0,0.40751]
[1730831297840,3.83309983,2454.1,2453.8,3.18047872]
[1730831298035,3.83309983,2454.1,2453.9,0.40753]
[1730831298946,7.04089983,2454.0,2453.7,1.086]
[1730831299151,3.2078,2454.0,2453.7,1.086]
[1730831299448,3.2078,2454.0,2453.5,4.67407872]
[1730831299449,3.83309983,2453.8,2453.5,4.67407872]
[1730831299648,3.83309983,2453.6,2453.5,4.26647872]
[1730831300648,3.83309983,2453.6,2453.5,1.086]
[1730831301144,3.83309983,2453.6,2453.2,3.69006391]
[1730831301145,4.26879983,2453.6,2453.2,0.50958519]
[1730831301448,3.83309983,2453.3,2453.2,1.59558519]
[1730831302043,3.83309983,2453.3,2453.2,0.91723519]
[1730831302242,3.83309983,2453.3,2453.2,0.50958519]
[1730831303649,3.83309983,2453.3,2453.1,1.49366]
[1730831303841,3.83309983,2453.2,2453.1,1.086]
[1730831304454,44.63309983,2453.2,2453.0,3.18047872]
[1730831304750,7.04089983,2453.1,2452.9,1.086]
[1730831305051,44.0078,2453.1,2452.9,1.086]
[1730831305352,3.83309983,2453.0,2452.9,1.49369]
[1730831305652,3.83309983,2453.0,2452.8,0.01767]
[1730831305945,3.83309983,2452.9,2452.8,0.42538]
[1730831306148,3.83309983,2452.9,2452.8,0.01767]
[1730831306546,4.24079983,2452.9,2452.8,0.01767]
[1730831312954,3.83309983,2452.9,2452.8,0.01767]
[1730831313551,4.24079983,2452.9,2452.8,0.01767]
[1730831313955,3.83309983,2452.9,2452.4,1.181]
[1730831314255,0.9003,2453.0,2452.5,0.91759064]
[1730831314256,3.83309983,2452.6,2452.5,0.91759064]
[1730831314457,3.22131342,2452.6,2452.5,0.91758158]
[1730831316462,3.22131342,2452.6,2452.5,1.73328937]
[1730831317256,3.22131342,2452.6,2452.5,1.32552937]
[1730831317463,3.22131342,2452.6,2452.5,1.73328937]
[1730831317863,3.22131342,2452.6,2452.4,1.086]
[1730831318062,3.22131342,2452.6,2452.5,0.40776]
[1730831318261,3.22131342,2452.6,2452.5,2.54904328]
[1730831318559,3.22131342,2452.6,2452.5,3.05887546]
[1730831320760,3.22131342,2452.6,2452.5,3.50137546]
[1730831321359,3.22131342,2452.6,2452.5,2.17581179]
[1730831321673,3.22131342,2452.6,2452.5,3.50132218]
[1730831322563,3.2078,2452.7,2452.6,0.40775]
[1730831322761,3.2078,2452.7,2452.6,1.73326039]
[1730831322762,6.42911342,2452.7,2452.6,1.73326039]
[1730831323159,0.9003,2453.0,2452.6,1.32551039]
[1730831323371,3.22131342,2452.9,2452.7,1.32551039]
[1730831323667,3.22131342,2452.9,2452.8,1.733131]
[1730831324870,3.2078,2453.1,2452.8,1.325421]
[1730831325065,3.22131342,2453.0,2452.9,0.4077]
[1730831325265,3.22131342,2453.0,2452.9,0.91751169]
[1730831326062,3.22131342,2453.0,2452.9,1.73309562]
[1730831326269,3.2078,2453.4,2453.3,0.40762]
[1730831326776,6.42911342,2453.4,2453.3,0.91732835]
[1730831328272,6.42911342,2453.4,2453.3,0.40762]
[1730831328467,6.42911342,2453.4,2453.0,1.9512]
[1730831328673,3.2078,2453.4,2453.0,0.4331]
[1730831328870,3.61542,2453.4,2453.1,1.73288417]
[1730831329074,0.4539,2453.3,2453.1,1.73288417]
[1730831329263,3.22131342,2453.2,2453.1,0.91735545]
[1730831329475,3.22131342,2453.2,2453.1,1.732913]
[1730831330277,3.22131342,2453.2,2453.1,1.73293485]
[1730831330577,3.22131342,2453.2,2453.1,0.40765]
[1730831330780,3.22131342,2453.2,2453.1,1.73292156]
[1730831330974,3.22131342,2453.2,2453.1,1.22320666]
[1730831331174,3.22131342,2453.2,2453.1,1.73292957]
[1730831332172,3.22131342,2453.2,2453.1,0.91737058]
[1730831332870,3.22131342,2453.2,2453.1,1.73292351]
[1730831333270,3.22131342,2453.2,2453.1,2.56547691]
[1730831334475,3.62896342,2453.2,2453.1,2.15782691]
[1730831334673,3.62896342,2453.2,2453.1,1.32527351]
[1730831335364,3.62896342,2453.2,2453.1,0.91738058]
[1730831335569,3.62896342,2453.2,2453.1,0.91741067]
[1730831335867,3.62896342,2453.2,2453.1,1.73301174]
[1730831336068,3.22131342,2453.2,2453.1,1.73301174]
[1730831336682,3.62896342,2453.2,2453.1,1.73301174]
[1730831336871,3.22131342,2453.2,2453.1,1.73301174]
[1730831337977,3.22131342,2453.2,2453.1,1.99718549]
[1730831338980,3.22131342,2453.2,2453.1,1.99718792]
[1730831339381,3.22131342,2453.2,2453.1,1.9971992]
[1730831339777,3.22131342,2453.2,2453.1,1.73301174]
[1730831339983,3.66511342,2453.2,2453.1,1.73301174]
[1730831340276,3.66511342,2453.2,2453.1,1.99725955]
[1730831341681,3.66511342,2453.2,2453.1,0.91741067]
[1730831341881,3.66511342,2453.2,2453.1,1.73296411]
[1730831342082,4.07276342,2453.2,2453.1,0.50973235]
[1730831342880,3.66511342,2453.2,2453.1,0.91739235]
[1730831343784,0.8977,2453.6,2453.5,0.4076]
[1730831343981,0.8977,2453.6,2453.5,0.91733235]
[1730831344182,4.11901342,2453.6,2453.5,0.91733235]
[1730831344387,4.11901342,2453.6,2453.5,1.17853806]
[1730831345083,4.11901342,2453.6,2453.5,1.17852588]
[1730831349390,4.11901342,2453.6,2453.5,0.77092588]
[1730831349585,4.11901342,2453.6,2453.5,1.17852588]
[1730831350493,4.52659342,2453.6,2453.5,0.77092588]
[1730831350792,4.52659342,2453.6,2453.4,0.40761]
[1730831350793,4.52660342,2453.6,2453.4,0.40761]
[1730831350988,3.2078,2453.5,2453.4,0.40761]
[1730831351192,6.42911342,2453.5,2453.4,0.77111605]
[1730831351389,6.42911342,2453.5,2453.4,0.50968325]
[1730831351390,6.83671342,2453.5,2453.4,0.50968325]
[1730831351894,6.83671342,2453.5,2453.3,0.40762]
[1730831352093,3.67911342,2453.4,2453.3,0.40762]
[1730831352592,3.67911342,2453.4,2453.3,1.17877681]
[1730831353195,3.67911342,2453.4,2453.3,1.99426649]
[1730831353383,3.67911342,2453.4,2453.3,1.99427597]
[1730831354197,3.67911342,2453.4,2453.3,1.17877681]
[1730831354892,3.67911342,2453.4,2453.3,1.99428661]
[1730831355599,3.67911342,2453.4,2453.3,1.99426705]
[1730831356490,3.67911342,2453.4,2453.3,1.99422994]
[1730831356690,4.08672342,2453.4,2453.3,1.58660994]
[1730831356998,4.08672342,2453.4,2453.3,1.17873348]
[1730831356999,3.67911342,2453.4,2453.3,1.17873348]
[1730831358491,3.22131342,2453.4,2453.3,0.40763]
[1730831359298,5.77975566,2453.8,2453.7,0.40756]
[1730831359495,3.2078,2453.8,2453.7,0.40756]
[1730831359794,6.42911342,2453.8,2453.7,0.40756]
[1730831360001,6.42911342,2453.8,2453.7,1.17863941]
[1730831360991,6.42911342,2453.8,2453.7,0.77107941]
[1730831361188,6.42911342,2453.8,2453.7,1.17863941]
[1730831361598,6.42911342,2453.8,2453.7,0.77107941]
[1730831361894,6.83666342,2453.8,2453.7,0.77107941]
[1730831362095,6.83666342,2453.8,2453.7,0.50961055]
[1730831362599,6.42911342,2453.8,2453.7,0.50961055]
[1730831362801,6.42911342,2453.8,2453.7,1.17861055]
[1730831363305,6.42911342,2453.8,2453.7,0.669]
[1730831363793,6.42911342,2453.8,2453.7,1.17862238]
[1730831366603,4.1049,2454.4,2454.3,0.40746]
[1730831366798,4.5325,2454.4,2454.3,1.17840248]
[1730831367097,7.75381342,2454.4,2454.3,0.77094248]
[1730831367301,7.75381342,2454.4,2454.3,0.509503]
[1730831367302,8.16126342,2454.4,2454.3,0.509503]
[1730831367503,13.0352478,2454.4,2453.9,0.40753]
[1730831367701,3.2078,2454.1,2454.0,1.17847083]
[1730831368096,6.42911342,2454.1,2454.0,1.17847083]
[1730831370104,3.2078,2454.4,2454.3,0.40746]
[1730831370403,3.2078,2454.4,2454.3,0.66879571]
[1730831370599,3.2078,2454.4,2454.3,1.17816379]
[1730831371900,6.42911342,2454.4,2454.3,1.17816379]
[1730831372207,6.42911342,2454.4,2454.3,0.91691934]
[1730831372908,6.42911342,2454.4,2454.3,0.40746]
[1730831373500,6.42911342,2454.4,2454.2,0.86967]
[1730831373700,3.22131342,2454.3,2454.2,0.86968]
[1730831373911,3.68111342,2454.3,2454.2,1.37915865]
[1730831375306,3.22131342,2454.3,2454.2,1.37915865]
[1730831375911,3.22131342,2454.3,2454.2,1.64012018]
[1730831376204,3.2078,2454.4,2454.3,0.40746]
[1730831376407,3.2078,2454.4,2454.3,0.91693865]
[1730831377004,0.4586,2454.7,2454.3,3.95082725]
[1730831377204,0.4586,2454.7,2454.2,0.4622]
[1730831377205,0.4586,2454.7,2454.5,0.40742]
[1730831377608,3.22131342,2454.6,2454.5,0.40742]
[1730831378707,3.22131342,2454.6,2454.4,0.40744]
[1730831378913,3.22131342,2454.4,2454.3,3.58793872]
[1730831379115,3.22131342,2454.4,2454.3,4.09737763]
[1730831381621,3.22131342,2454.4,2454.3,3.58793872]
[1730831382309,3.22131342,2454.4,2454.3,4.09737509]
[1730831382617,3.22131342,2454.4,2454.3,4.3580008]
[1730831382818,3.22131342,2454.4,2454.3,4.09737509]
[1730831385808,3.22131342,2454.4,2454.3,0.50943637]
[1730831386005,3.22131342,2454.4,2453.7,3.04902457]
[1730831386006,3.22131342,2454.4,2454.0,1.082]
[1730831386209,3.2078,2454.5,2454.0,1.082]
[1730831386210,1.3566,2454.3,2454.0,4.26247872]
[1730831386414,3.22131342,2454.2,2454.1,0.91698567]
[1730831387616,3.22131342,2454.2,2454.1,1.73214436]
[1730831388311,3.22131342,2454.2,2454.1,1.22265869]
[1730831388513,3.22131342,2454.2,2454.1,1.73212231]
[1730831388815,3.2078,2454.5,2454.1,1.32462231]
[1730831389022,3.22131342,2454.3,2454.2,0.91695012]
[1730831391814,3.22131342,2454.3,2454.2,0.40748]
[1730831392020,3.22131342,2454.3,2454.2,0.91695368]
[1730831392315,3.22131342,2454.3,2454.2,0.40748]
[1730831392517,3.22131342,2454.3,2454.2,0.91695745]
[1730831393217,3.22131342,2454.3,2454.2,0.50947745]
[1730831393612,3.22131342,2454.3,2454.2,0.91695745]
[1730831394518,3.22131342,2454.3,2454.2,1.73212997]
[1730831395323,3.22131342,2454.3,2454.2,0.40748]
[1730831395723,3.22131342,2454.3,2454.2,1.73213123]
[1730831398921,3.22131342,2454.3,2454.2,1.32465123]
[1730831399922,3.62877342,2454.3,2454.2,1.32465123]
[1730831400123,3.22131342,2454.3,2454.2,1.32465123]
[1730831400322,3.22131342,2454.3,2454.2,1.58577167]
[1730831400516,3.22131342,2454.3,2454.2,1.73213123]
[1730831401222,3.22131342,2454.3,2454.2,1.99332152]
[1730831401427,3.22131342,2454.3,2454.1,0.4075]
[1730831401428,3.62878342,2454.3,2454.1,0.4075]
[1730831401726,1.0879,2454.2,2454.1,0.4075]
[1730831401923,4.30921342,2454.2,2454.1,0.4075]
[1730831402127,4.30921342,2454.2,2454.1,0.66870064]
[1730831402322,3.22131342,2454.2,2454.1,1.99338874]
[1730831402527,3.22131342,2454.2,2454.1,3.09265261]
[1730831402730,3.22131342,2454.2,2454.1,1.76796451]
[1730831402933,3.22131342,2454.2,2454.1,2.58309705]
[1730831403133,3.6535,2454.4,2454.1,2.17559705]
[1730831403334,3.22131342,2454.2,2454.1,1.77763254]
[1730831403633,3.22131342,2454.2,2454.1,3.09296282]
[1730831403833,3.22131342,2454.2,2454.1,3.09297155]
[1730831405034,3.22131342,2454.2,2454.1,1.76837244]
[1730831405221,3.2078,2454.4,2454.1,2.68549107]
[1730831405425,3.22131342,2454.4,2454.3,0.40746]
[1730831405624,3.22131342,2454.4,2454.3,2.53793927]
[1730831406026,3.22131342,2454.4,2454.3,5.71841414]
[1730831406228,3.22131342,2454.4,2454.3,5.71842192]
[1730831406429,3.22131342,2454.4,2454.3,5.17394333]
[1730831406830,3.22131342,2454.4,2454.3,5.71849715]
[1730831407325,3.22131342,2454.4,2454.3,5.17394333]
[1730831407529,3.22131342,2454.4,2454.3,5.71860742]
[1730831408127,3.62876342,2454.4,2454.3,1.58600461]
[1730831408324,3.62876342,2454.4,2453.7,2.22314798]